Cogmind - Beta 16.1 @@@ ROGUE MODE // 2026.03.19 @ 18:10:38 Player: ash Result: Self-destructed Performance ------------- Evolutions (3) 1500 Regions Visited (10) 2000 Robots Destroyed (73) 365 Value Destroyed (2111) 2111 Prototype IDs (29) 580 Alien Tech Used (0) 0 Bonus (416) 416 TOTAL SCORE: 6972 Bonus ------- Follower Combat Kills 116 Aligned with FarCom 300 Cogmind --------- Core Integrity 491/700 Matter 251/300 Energy 170/170 System Corruption 0% Temperature Cool (0) Movement Core (100) Ox1 Location -7/Lower Caves Parts ------- > --- POWER (1) -------- Makeshift Power Source > --- PROPULSION (4) --- (None) > --- UTILITY (6) ------ Medium Storage Unit Advanced Weight Redist. System Improved Signal Interpreter Reaction Control System Hacking Suite > --- WEAPON (2) ------- (None) > --- INVENTORY (10) --- Makeshift Power Source Scrap Suit ECM Suite Cloak of Protection Improved Shield Generator Hacking Suite Mace Katana Peak State ------------ > --- POWER ------------ Makeshift Power Source > --- PROPULSION ------- Gravmag System Cesium-ion Thruster Xenon Bombardment Thruster Xenon Bombardment Thruster > --- UTILITY ---------- Medium Storage Unit Advanced Weight Redist. System Structural Scanner Improved Signal Interpreter Reaction Control System Hacking Suite > --- WEAPON ----------- Molecular Deconstructor > --- INVENTORY -------- Scrap Suit Large Battery ECM Suite Cloak of Protection Improved Shield Generator Hacking Suite Improved Grenade Launcher Mace Katana [Rating: 54] Favorites ----------- Power Cooled Ion Engine Engine Cooled Ion Engine Power Core Light Nuclear Core Propulsion Wheel Leg Aluminum Leg Wheel Wheel Hover Unit Gravmag System Flight Unit Xenon Bombardment Thruster Utility Huge Storage Unit Device Structural Scanner Storage Huge Storage Unit Processor Signal Interpreter Hackware Hacking Suite Protection Medium Armor Plating Weapon Particle Gun Energy Gun Particle Gun Energy Cannon Particle Cannon Launcher Improved Grenade Launcher Special Weapon Molecular Deconstructor Impact Weapon Mace Slashing Weapon Katana Build | -11 -10 -10 -9 -9 -9 -8 -8 -7 -7 -7 ------- Run | Yrd Mat Min Mat Min Exi Min Mat Fac Low Low Slots Evolved 6 | . . . 2 . . . 2 2 . . Power . | . . . . . . . . . . . Propulsion 2 | . . . . . . . . 2 . . Utility 4 | . . . 2 . . . 2 . . . Weapon . | . . . . . . . . . . . Parts Attached 70 | . 10 6 8 6 . . 9 16 14 1 Power 8 | . 1 1 2 1 . . . 1 2 . Engine 6 | . 1 1 2 1 . . . . 1 . Core 2 | . . . . . . . . 1 1 . Reactor . | . . . . . . . . . . . Propulsion 17 | . 2 1 2 1 . . 2 5 4 . Treads . | . . . . . . . . . . . Leg . | . . . . . . . . . . . Wheel 13 | . 2 1 2 1 . . 2 5 . . Hover 1 | . . . . . . . . . 1 . Flight 3 | . . . . . . . . . 3 . Utility 23 | . 4 1 3 . . . 4 7 4 . Device 8 | . 3 . 1 . . . . 1 3 . Storage 3 | . 1 . . . . . . 1 1 . Processor 5 | . . 1 . . . . 2 2 . . Hackware 1 | . . . . . . . . 1 . . Protection 6 | . . . 2 . . . 2 2 . . Artifact . | . . . . . . . . . . . Weapon 22 | . 3 3 1 4 . . 3 3 4 1 Energy Gun 7 | . 1 . . 2 . . 3 1 . . Energy Cannon 7 | . . 2 . 1 . . . 2 2 . Ballistic Gun . | . . . . . . . . . . . Ballistic Cannon . | . . . . . . . . . . . Launcher 4 | . 1 1 . 1 . . . . 1 . Special Weapon 2 | . 1 . . . . . . . 1 . Impact Weapon 1 | . . . . . . . . . . 1 Slashing Weapon 1 | . . . 1 . . . . . . . Piercing Weapon . | . . . . . . . . . . . Special Melee Weapon . | . . . . . . . . . . . Unidentified Prototypes 1 | . . . . . . . . . 1 . Parts Lost 34 | . 1 2 1 5 . . 5 10 4 6 Power 3 | . 1 1 . . . . . . 1 . Propulsion 15 | . . 1 1 2 . . 2 3 2 4 Utility 8 | . . . . 1 . . 2 4 . 1 Weapon 8 | . . . . 2 . . 1 3 1 1 Highest Loss Streak 6 | . 1 1 1 5 . . 2 3 3 6 To Critical Strikes . | . . . . . . . . . . . Average Backups 20 | . 12 24 23 20 20 21 20 22 14 7 Power 1 | . . . 1 1 2 2 2 1 . 1 Propulsion 2 | . 5 4 3 2 2 2 2 2 2 . Utility 8 | . 2 8 8 9 9 10 9 9 7 5 Weapon 7 | . 3 10 9 6 7 7 6 8 4 1 Tool/Special . | . . . . . . . . . . . Unused Backups 36 | . 2 4 11 . . . 3 7 4 5 Power 4 | . . . 1 . . . . 2 . 1 Propulsion 4 | . . 1 2 . . . . 1 . . Utility 20 | . 2 1 7 . . . . 3 3 4 Weapon 8 | . . 2 1 . . . 3 1 1 . Tool/Special . | . . . . . . . . . . . Average Slot Usage (%) 98 | . 99 100 99 99 100 100 95 99 91 68 Engine 9 | . 13 14 11 10 11 11 9 4 . 7 Wheel 23 | . 25 28 22 22 22 22 17 29 11 . Device 12 | . 13 9 16 11 11 19 13 7 19 17 Storage 11 | . 14 14 11 11 11 11 9 10 11 7 Processor 11 | . . 4 11 11 11 11 17 16 7 7 Protection 5 | . . . 5 10 11 2 9 7 . . Energy Gun 12 | . 27 6 . 18 22 22 16 6 . . Energy Cannon 6 | . . 21 21 3 . . . 5 3 . Peak Build Rating 54 | . 10 12 20 20 20 20 33 35 54 54 Average Rating 23 | . 7 11 17 18 19 19 30 32 38 28 On Entrance 20 | 6 6 10 12 19 19 20 19 33 31 54 Avg Prop Armor Cover (%) 5 | . . . . . . . . . 5 . Naked Turns . | . . . . . . . . . . . Heaviest Build 109 | 11 88 92 105 104 103 103 107 109 102 22 Greatest Support 54 | 20 20 20 20 20 20 20 26 54 42 26 Greatest Overweight (x) 10 | . 4 4 5 5 5 5 10 2 3 1 Average Overweight (x) 3 | . 3 4 4 4 5 4 4 1 . . Largest Inventory Capacity 25 | . 25 25 25 25 25 25 25 25 25 10 Average Capacity 24 | . 23 25 25 25 25 25 25 25 17 10 Most Carried 25 | . 25 25 25 25 22 22 24 25 22 10 Average Carried 21 | . 13 24 24 21 21 22 21 23 15 8 Final Capacity 25 | 8 25 25 25 25 25 25 25 25 10 10 Final Carried 25 | 6 24 25 25 21 22 22 24 23 10 9 Class Distribution -------------------- 69% | Mutant 12% | Scavenger-Mutant 12% | Scavenger-Skirmisher 3% | Scavenger-Assassin Dominant Class ---------------- Mutant | -10/Materials Mutant | -10/Mines Mutant | -9/Materials Mutant | -9/Mines Mutant | -9/Exiles Mutant | -8/Mines Mutant | -8/Materials Scavenger-Skirmisher | -7/Factory Sprinter | -7/Lower Caves Sprinter | -7/Lower Caves Resources | -11 -10 -10 -9 -9 -9 -8 -8 -7 -7 -7 ----------- Run | Yrd Mat Min Mat Min Exi Min Mat Fac Low Low Matter Collected 1503 | 200 64 183 249 117 . . 110 201 379 . Remotely . | . . . . . . . . . . . Salvage Created 2738 | . 83 165 707 102 . . 837 497 347 . Parts 145 | . 12 11 36 5 . . 44 27 10 . Haulers Intercepted 6 | . . . 3 . . . 1 2 . . Recyclers Shooed 2 | . 1 . 1 . . . . . . . Parts Field Recycled . | . . . . . . . . . . . Retrieved Matter . | . . . . . . . . . . . Parts Self-Destructed 6 | . . . . . . . . . 6 . Prevented 4 | . . . . . . . . . 4 . Parts Restored . | . . . . . . . . . . . Kills | -11 -10 -10 -9 -9 -9 -8 -8 -7 -7 -7 ------- Run | Yrd Mat Min Mat Min Exi Min Mat Fac Low Low Combat Hostiles Destroyed 54 | . 5 7 11 4 . . 8 9 9 1 Melee 2 | . . . . . . . . . 1 1 Guns 12 | . 2 . . 2 . . 6 2 . . Cannons 20 | . . 4 11 . . . . 2 3 . AOE 18 | . 3 3 . 2 . . 1 5 4 . Classes Destroyed 13 | . 3 1 4 . . . 1 3 . 1 Worker 5 | . 1 . 2 . . . 1 1 . . Builder 2 | . 2 . . . . . . . . . Tunneler 1 | . . . . . . . . 1 . . Hauler 6 | . . . 3 . . . 1 2 . . Recycler 5 | . . . 1 . . . 3 1 . . Swarmer 17 | . 5 3 . 2 . . . 3 4 . Grunt 18 | . . 4 7 1 . . 1 1 4 . Duelist 2 | . . . 1 1 . . . . . . Sentry 9 | . . . 3 . . . 5 . 1 . Specialist 2 | . . . . . . . 2 . . . Hunter 1 | . . . . . . . . 1 . . Programmer 4 | . . . . . . . . 4 . . Thief 1 | . . . . . . . . . . 1 Best Kill Streak 5 | . 5 3 4 3 . . 3 3 4 1 Combat Bots Only 4 | . 3 3 3 3 . . 2 3 4 1 Max Kills in Single Turn 3 | . 2 3 2 2 . . 2 2 2 1 Gunslinging . | . . . . . . . . . . . Exploded 3 | . 2 3 . 2 . . 1 2 2 . Melee 1 | . . . . . . . . . 1 1 Uniques/NPCs Destroyed . | . . . . . . . . . . . Combat | -11 -10 -10 -9 -9 -9 -8 -8 -7 -7 -7 -------- Run | Yrd Mat Min Mat Min Exi Min Mat Fac Low Low Hostile Shots Fired 305 | . 34 23 36 28 . . 67 75 32 10 Missed 104 | . 14 8 11 5 . . 25 26 12 3 Hits 201 | . 20 15 25 23 . . 42 49 20 7 Melee 14 | . . . . 10 . . . 1 . 3 Projectile 187 | . 20 15 25 13 . . 42 48 20 4 Critical Strikes 7 | . . 1 . 3 . . . 2 1 . Damage Taken 3368 | . 298 231 330 448 . . 555 893 353 260 Core 632 | . 113 72 89 62 . . 87 105 40 64 Absorbed by Shields . | . . . . . . . . . . . Core Remaining (%) 68 | 100 . 26 . . . 62 84 . . . Volleys Fired 175 | . 19 18 37 15 . . 31 39 13 3 Largest 2 | . 2 2 2 2 . . 2 2 2 1 Hottest 136 | . 90 136 136 136 . . 110 132 126 36 Shots Fired 318 | . 35 32 74 25 . . 62 65 22 3 Gun 129 | . 29 . . 12 . . 62 26 . . Cannon 167 | . . 30 74 11 . . . 34 18 . Launcher 19 | . 3 2 . 2 . . . 5 4 3 Special 3 | . 3 . . . . . . . . . Kinetic . | . . . . . . . . . . . Thermal 167 | . 32 30 74 19 . . . 12 . . Explosive 19 | . 3 2 . 2 . . . 5 4 3 Electromagnetic 132 | . . . . 4 . . 62 48 18 . Robot Hit Streak 42 | . 6 5 29 42 . . 11 15 18 7 Robot Miss Streak 6 | . 6 2 3 3 . . 2 3 1 . Penetration Max . | . . . . . . . . . . . Secondary Targets . | . . . . . . . . . . . Shots Hit Robots 211 | . 13 13 45 18 . . 45 51 20 6 Core Hits 92 | . 8 8 19 6 . . 20 18 11 2 Critical Kills . | . . . . . . . . . . . Critical Parts Destroyed . | . . . . . . . . . . . Critical Strikes 2 | . . . . 2 . . . . . . Burn 2 | . . . . 2 . . . . . . Melee Attacks 24 | . . . 1 . . . 2 14 4 3 Impact 1 | . . . . . . . . . . 1 Slashing 23 | . . . 1 . . . 2 14 4 2 Piercing . | . . . . . . . . . . . Sneak Attacks 4 | . . . . . . . . 4 . . Combat Hostiles . | . . . . . . . . . . . Follow-up Attacks 1 | . . . . . . . . . . 1 Damage Inflicted 6035 | . 382 496 970 431 . . 884 1921 723 228 Guns 1417 | . 169 . . 97 . . 834 317 . . Cannons 2211 | . . 285 970 219 . . . 358 379 . Explosions 1971 | . 178 211 . 115 . . 50 966 306 145 Melee 401 | . . . . . . . . 280 38 83 Ramming 35 | . 35 . . . . . . . . . Kinetic . | . . . . . . . . . . . Thermal 2303 | . 169 362 970 240 . . 50 512 . . Explosive 1490 | . 178 134 . 115 . . . 612 306 145 Electromagnetic 1806 | . . . . 76 . . 834 517 379 . Impact 28 | . . . . . . . . . . 28 Slashing 373 | . . . . . . . . 280 38 55 Piercing . | . . . . . . . . . . . Highest Corruption 2 | . 2 2 . . . . . 1 1 . Average Corruption 1 | . 2 2 . . . . . 1 1 . Corruption Purged 1 | . . . . . . . . . 1 . Corruption Blocked 1 | . . . . . . . . 1 . . Effects 15 | . 1 5 . . . . . 9 . . Matter Fused 5 | . 1 1 . . . . . 3 . . Energy Discharges 4 | . . 2 . . . . . 2 . . Data Loss (minor) 3 | . . 1 . . . . . 2 . . Data Loss (major) 1 | . . . . . . . . 1 . . Alerts 1 | . . 1 . . . . . . . . Weapon Failures 1 | . . . . . . . . 1 . . Overload Shots . | . . . . . . . . . . . Overflow Damage 285 | . 40 . 12 40 . . . 95 57 41 Projectiles 33 | . . . 12 8 . . . 1 12 . Explosions 199 | . 40 . . 32 . . . 62 45 20 Melee 53 | . . . . . . . . 32 . 21 Knockbacks . | . . . . . . . . . . . Impact . | . . . . . . . . . . . Kinetic . | . . . . . . . . . . . Secondary . | . . . . . . . . . . . Self-Inflicted Damage 420 | . 55 23 . . . . . 94 90 158 Shots 13 | . 1 1 . . . . . 4 4 3 Rammed 4 | . 4 . . . . . . . . . Targets Rammed 4 | . 4 . . . . . . . . . Kicked . | . . . . . . . . . . . Crushed . | . . . . . . . . . . . Highest Temperature 273 | . 126 193 252 17 . . 194 183 273 . Average Temperature 66 | . 38 72 63 8 . . 80 58 121 . Received Heat Transfer 663 | . 93 114 144 30 . . 117 45 120 . Effects 1 | . . . . . . . . . 1 . Energy Bleed 1 | . . . . . . . . . 1 . Siege Activations . | . . . . . . . . . . . Martial Activations . | . . . . . . . . . . . Shielding Activations . | . . . . . . . . . . . Robots Disrupted . | . . . . . . . . . . . Combat Hostiles . | . . . . . . . . . . . Robots Corrupted 2 | . . . . . . . 1 . 1 . Combat Hostiles 2 | . . . . . . . 1 . 1 . Parts Fried 8 | . . . . . . . 6 1 1 . Impact Corruptions 1 | . . . . . . . . . . 1 Robots Melted . | . . . . . . . . . . . Combat Hostiles . | . . . . . . . . . . . Parts Melted 7 | . . 1 3 1 . . . 2 . . Heat Transferred 4028 | . 446 618 1739 629 . . . 596 . . Parts Sabotaged . | . . . . . . . . . . . Parts Stolen . | . . . . . . . . . . . Parts Stripped . | . . . . . . . . . . . Power Chain Reactions 7 | . . . . . . . 1 6 . . Alert | -11 -10 -10 -9 -9 -9 -8 -8 -7 -7 -7 ------- Run | Yrd Mat Min Mat Min Exi Min Mat Fac Low Low Maximum Alert Level . | . . . . . . . . . . . Low Security (%) 100 | . 100 100 100 100 . 100 100 100 . . Level 1 . | . . . . . . . . . . . Level 2 . | . . . . . . . . . . . Level 3 . | . . . . . . . . . . . Level 4 . | . . . . . . . . . . . Level 5 . | . . . . . . . . . . . High Security . | . . . . . . . . . . . Max Security . | . . . . . . . . . . . Peak Influence 142 | . 91 87 127 139 . . 52 142 . . Initial 23 | . . . 23 22 . . . . . . Average 38 | . 18 39 66 70 . . 16 44 . . Influence Increases 2166 | . 211 246 475 169 . . 315 455 280 15 Destroy 0b10 Robot/C 1140 | . 100 180 260 80 . . 160 180 180 . Destroy 0b10 Robot/NC 100 | . 15 . 35 . . . 25 25 . . Destroy Leader 254 | . 10 20 78 10 . . 62 64 10 . Allied During Kill 8 | . . 4 4 . . . . . . . Successful Hack 96 | . 15 . 19 . . . 29 33 . . Select Force Hacks 30 | . . . . . . . 30 . . . Disable Machine 165 | . 15 15 75 15 . . . 45 . . Destroy Structure 118 | . 11 12 4 19 . . 9 63 . . Partial Spotted 15 | . . . . . . . . 15 . . Lose Combat Pursuer 240 | . 45 15 . 45 . . . 30 90 15 Influence Decreases 2129 | . 211 186 477 198 29 . 315 415 205 93 Entered New Map 140 | . . . 37 36 29 . . . 15 23 Time Decay 1667 | . 201 166 410 140 . . 265 325 150 10 Lost Part 302 | . 10 20 10 22 . . 50 90 40 60 Purge Threat 20 | . . . 20 . . . . . . . Squads Dispatched 12 | . 2 . . . . . 2 8 . . Investigation 4 | . . . . . . . 1 3 . . Extermination 4 | . . . . . . . . 4 . . Reinforcement 4 | . 2 . . . . . 1 1 . . Assault . | . . . . . . . . . . . Garrison . | . . . . . . . . . . . Intercept . | . . . . . . . . . . . Searches Triggered . | . . . . . . . . . . . Construction Impeded . | . . . . . . . . . . . Haulers Reinforced 1 | . . . . . . . . 1 . . Active Scanning Responses . | . . . . . . . . . . . Cargo Convoy Interrupts . | . . . . . . . . . . . Stealth | -11 -10 -10 -9 -9 -9 -8 -8 -7 -7 -7 --------- Run | Yrd Mat Min Mat Min Exi Min Mat Fac Low Low Distress Signals 3 | . 1 . 1 . . . 1 . . . Communications Jammed . | . . . . . . . . . . . Distress Signals . | . . . . . . . . . . . Times Spotted 93 | . 13 10 20 7 . . 10 15 13 5 Peak Tracking Total 5 | . 3 3 3 4 . . 2 4 5 3 Tactical Retreats 11 | . 3 1 . 2 . . . 1 3 1 Traps | -11 -10 -10 -9 -9 -9 -8 -8 -7 -7 -7 ------- Run | Yrd Mat Min Mat Min Exi Min Mat Fac Low Low Traps Triggered 5 | . 1 . . . . . . 4 . . Indirectly . | . . . . . . . . . . . Trap Hack Attempts . | . . . . . . . . . . . Triggered . | . . . . . . . . . . . Disarmed . | . . . . . . . . . . . Reprogrammed . | . . . . . . . . . . . Reused . | . . . . . . . . . . . Traps Extracted . | . . . . . . . . . . . Installed . | . . . . . . . . . . . Triggered . | . . . . . . . . . . . Machines | -11 -10 -10 -9 -9 -9 -8 -8 -7 -7 -7 ---------- Run | Yrd Mat Min Mat Min Exi Min Mat Fac Low Low Machines Disabled 12 | . 1 1 5 1 . . . 3 1 . Max in Single Turn 2 | . 1 1 2 1 . . . 2 1 . Garrison Access 2 | . . . . . . . . 2 . . Machines Repaired . | . . . . . . . . . . . Machines Dismantled . | . . . . . . . . . . . Machines Sabotaged . | . . . . . . . . . . . Overloaded Fab Kills . | . . . . . . . . . . . Hacking | -11 -10 -10 -9 -9 -9 -8 -8 -7 -7 -7 --------- Run | Yrd Mat Min Mat Min Exi Min Mat Fac Low Low Machines Accessed 32 | . 4 . 6 . 3 . 5 13 1 . Terminals 20 | . 4 . 4 . . . 3 9 . . Fabricators . | . . . . . . . . . . . Repair Stations . | . . . . . . . . . . . Recycling Units 3 | . . . 1 . . . 1 1 . . Scanalyzers 3 | . . . 1 . . . 1 1 . . Garrison Access 2 | . . . . . . . . 2 . . Total Hacks 84 | . 13 . 21 . 3 . 19 27 1 . Successful 47 | . 7 . 12 . 3 . 11 13 1 . Failed 37 | . 6 . 9 . . . 8 14 . . Catastrophic 8 | . 1 . 1 . . . 1 5 . . Database Lockouts . | . . . . . . . . . . . Manual 31 | . 6 . 7 . 1 . 6 10 1 . Terminals 61 | . 13 . 16 . . . 12 20 . . Fabricators . | . . . . . . . . . . . Repair Stations . | . . . . . . . . . . . Recycling Units 8 | . . . 2 . . . 4 2 . . Scanalyzers 8 | . . . 3 . . . 3 2 . . Garrison Access 3 | . . . . . . . . 3 . . Terminal Hacks 22 | . 5 . 4 . 3 . 4 5 1 . Record 2 | . . . . . 2 . . . . . Prototype ID Bank 2 | . 1 . . . . . 1 . . . Open Door 1 | . . . . . . . . . 1 . Branch Access Points 2 | . 1 . . . . . 1 . . . Emergency Access Points 2 | . 1 . 1 . . . . . . . Terminal Index 2 | . . . 1 . . . . 1 . . Repair Station Index 1 | . 1 . . . . . . . . . Alert Level 1 | . . . . . . . . 1 . . Unreport Threat 1 | . . . 1 . . . . . . . Locate Traps 3 | . . . . . . . 1 2 . . Registered Components 1 | . . . . . . . . 1 . . Zone Layout 3 | . 1 . 1 . . . 1 . . . Proto ID Catalog 1 | . . . . . 1 . . . . . Fabricator Hacks . | . . . . . . . . . . . Repair Station Hacks . | . . . . . . . . . . . Recycling Unit Hacks 1 | . . . . . . . . 1 . . Report Inventory 1 | . . . . . . . . 1 . . Scanalyzer 7 | . . . 3 . . . 2 2 . . Insert Component 2 | . . . . . . . 1 1 . . Analyze 2 | . . . . . . . 1 1 . . Retrieve Study 3 | . . . 3 . . . . . . . Garrison Access Hacks 2 | . . . . . . . . 2 . . Seal Access 2 | . . . . . . . . 2 . . Unauthorized Hacks 15 | . 2 . 5 . . . 5 3 . . Terminals 9 | . 2 . 3 . . . 2 2 . . Track 1 | . . . 1 . . . . . . . Botnet 8 | . 2 . 2 . . . 2 2 . . Fabricators . | . . . . . . . . . . . Repair Stations . | . . . . . . . . . . . Recycling Units 6 | . . . 2 . . . 3 1 . . Reject 2 | . . . 1 . . . 1 . . . Recyclers 3 | . . . 1 . . . 1 1 . . Tunnel 1 | . . . . . . . 1 . . . Scanalyzers . | . . . . . . . . . . . Garrison Access . | . . . . . . . . . . . Data Cores Recovered . | . . . . . . . . . . . Used . | . . . . . . . . . . . Hacking Detections 25 | . 4 . 6 . . . 5 10 . . Full Trace Events 1 | . . . . . . . . 1 . . Feedback Events . | . . . . . . . . . . . Feedback Blocked . | . . . . . . . . . . . Robot Schematics Acquired . | . . . . . . . . . . . Robots Built . | . . . . . . . . . . . Authchips . | . . . . . . . . . . . Time . | . . . . . . . . . . . Total Robot Build Rating . | . . . . . . . . . . . Part Schematics Acquired 2 | . . . . . . . 1 1 . . Parts Built . | . . . . . . . . . . . Authchips . | . . . . . . . . . . . Time . | . . . . . . . . . . . Total Part Build Rating . | . . . . . . . . . . . Part Studies Acquired 3 | . . . 3 . . . . . . . Parts Repaired . | . . . . . . . . . . . Time . | . . . . . . . . . . . Parts Recycled . | . . . . . . . . . . . Recycled Matter . | . . . . . . . . . . . Retrieved Matter . | . . . . . . . . . . . Retrieved Components . | . . . . . . . . . . . Parts Scanalyzed 2 | . . . . . . . 1 1 . . Part Schematics Acquired 2 | . . . . . . . 1 1 . . Parts Damaged . | . . . . . . . . . . . Bothacking | -11 -10 -10 -9 -9 -9 -8 -8 -7 -7 -7 ------------ Run | Yrd Mat Min Mat Min Exi Min Mat Fac Low Low Used RIF Installer . | . . . . . . . . . . . Robots Hacked . | . . . . . . . . . . . Non-combat . | . . . . . . . . . . . Combat . | . . . . . . . . . . . Robot Hacks Applied . | . . . . . . . . . . . Relay Couplers Released . | . . . . . . . . . . . Fabnet Peak Effective % . | . . . . . . . . . . . Robots Rewired . | . . . . . . . . . . . Allies Hacked . | . . . . . . . . . . . Hacks Repelled . | . . . . . . . . . . . Allies | -11 -10 -10 -9 -9 -9 -8 -8 -7 -7 -7 -------- Run | Yrd Mat Min Mat Min Exi Min Mat Fac Low Low Total Allies 1 | . . 1 . . . . . . . . Largest Group 1 | . . 1 1 . . . . . . . Highest-Rated Group 31 | . . 31 31 . . . . . . . Highest-Rated Ally 31 | . . 31 31 . . . . . . . Total Orders . | . . . . . . . . . . . Ally Attacks 11 | . . 4 7 . . . . . . . Total Damage 208 | . . 84 124 . . . . . . . Kills 5 | . . 2 3 . . . . . . . Allies Corrupted . | . . . . . . . . . . . Allies Melted . | . . . . . . . . . . . Intel | -11 -10 -10 -9 -9 -9 -8 -8 -7 -7 -7 ------- Run | Yrd Mat Min Mat Min Exi Min Mat Fac Low Low Active Infowar (turns) 4826 | . 735 145 534 12 . 404 767 1915 312 2 Terrain 358 | . 358 . . . . . . . . . Structural 4468 | . 377 145 534 12 . 404 767 1915 312 2 T.N.C. 1034 | . . . . . . . . 1034 . . Cloaking 7 | . . . . . . . . . 7 . Robot Analysis Total . | . . . . . . . . . . . Derelict Logs Recovered 3 | . . 2 . 1 . . . . . . Drone Launches . | . . . . . . . . . . . Drone Recoveries . | . . . . . . . . . . . Exploration | -11 -10 -10 -9 -9 -9 -8 -8 -7 -7 -7 ------------- Run | Yrd Mat Min Mat Min Exi Min Mat Fac Low Low Turns Passed 6874 | . 768 449 998 317 797 515 767 1915 312 36 Spaces Moved 4594 | 1 464 247 544 161 514 359 409 1419 430 46 Core 3 | . . . . . . . . . . 3 Treads . | . . . . . . . . . . . Legs 41 | 1 40 . . . . . . . . . Wheels 4150 | . 424 247 544 161 514 359 409 1419 73 . Hover . | . . . . . . . . . . . Flight 400 | . . . . . . . . . 357 43 Fastest Speed 32 | 120 120 140 140 140 155 140 140 102 32 32 Average Speed 126 | 120 138 140 145 154 155 142 148 115 47 43 Slowest Speed 230 | 120 140 140 155 155 155 155 230 120 135 100 Overloaded Moves . | . . . . . . . . . . . Propulsion Burnouts . | . . . . . . . . . . . Robots Hopped . | . . . . . . . . . . . Potential Cave-ins . | . . . . . . . . . . . Cave-ins Triggered . | . . . . . . . . . . . Exploration Rate (%) 45 | 3 72 61 52 31 91 65 28 35 48 10 Regions Visited 10 Branch Regions 6 Pre-discovered Areas 2 | . . 1 . . . . 1 . . . Known Exits Taken 9 | . 1 1 1 1 1 1 1 1 1 . Unknown Exits Taken 1 | 1 . . . . . . . . . . Scrap Searched 6 | . . 1 . 1 . . . . 3 1 Spaces Dug 19 | . . . 1 . . . 2 16 . . Terrain Destroyed 188 | . 14 12 1 27 . . 10 75 38 11 Melee 11 | . . . 1 . . . 2 8 . . Projectile . | . . . . . . . . . . . AOE 177 | . 14 12 . 27 . . 8 67 38 11 Terrain Rammed . | . . . . . . . . . . . Walls Destroyed . | . . . . . . . . . . . Machines Disabled . | . . . . . . . . . . . Actions | -11 -10 -10 -9 -9 -9 -8 -8 -7 -7 -7 --------- Run | Yrd Mat Min Mat Min Exi Min Mat Fac Low Low Total 5302 | . 549 318 679 202 514 360 504 1604 515 57 Wait 245 | . 26 37 46 15 . 1 38 54 28 . Move 4584 | . 463 246 543 160 513 358 408 1418 429 46 Hop . | . . . . . . . . . . . Pick Up 89 | . 21 6 19 2 1 . 9 26 5 . Fast Attach 10 | . 1 . . . . . 4 4 1 . Attach 42 | . 1 2 3 6 . . 4 15 8 3 Detach 11 | . . . . . . . 1 3 5 2 Swap 60 | . 11 5 10 4 . 1 4 18 7 . Drop 59 | . 3 4 20 . . . 3 13 15 1 Fire 175 | . 19 18 37 15 . . 31 39 13 3 Melee 23 | . . . 1 . . . 2 14 4 2 Ram 4 | . 4 . . . . . . . . . Kick . | . . . . . . . . . . . Crush . | . . . . . . . . . . . Escape Stasis . | . . . . . . . . . . . Rewire . | . . . . . . . . . . . Trap . | . . . . . . . . . . . Miscellaneous . | . . . . . . . . . . . Route ------- -11/Scrapyard -10/Materials (discovered 3 exits: *Mat x2 / *Min) -10/Mines (discovered 2 exits: *Mat x2) -9/Materials (discovered 3 exits: *Mat x2 / *Min) -9/Mines -9/Exiles -8/Mines -8/Materials -7/Factory -7/Lower Caves -7/Lower Caves History --------- Turn | Location | Event 1 | -11/Scrapyard | Discovered new exit (range 0) 1 | -11/Scrapyard | Entered Materials 19 | -10/Materials | Identified exit to Mines 240 | -10/Materials | Discovered new exit (range 11) 305 | -10/Materials | Build established: Mutant 428 | -10/Materials | Discovered new exit (range 16) 769 | -10/Materials | Entered Mines 797 | -10/Mines | Learned location of Storage (-7) 836 | -10/Mines | Discovered new exit (range 6) 867 | -10/Mines | Core integrity fell below 50% 937 | -10/Mines | Learned Materials trap positions 996 | -10/Mines | Received a Rocket Launcher from a helpful Derelict 1021 | -10/Mines | Found a Scrap Suit stashed away for nefarious purposes 1024 | -10/Mines | Found Scrap Suit 1045 | -10/Mines | Discovered new exit (range 16) 1058 | -10/Mines | Received a Mining Laser from a helpful Derelict 1066 | -10/Mines | Identified exit to Materials 1110 | -10/Mines | Excavation squad dispatched 1110 | -10/Mines | A large section of the Mines collapsed 1218 | -10/Mines | Entered Materials 1218 | -9/Materials | Accompanied by 1 ally 1218 | -9/Materials | Evolved 2 slots: Utility x2 1219 | -9/Materials | Loaded intel: 27 trap records 1246 | -9/Materials | Discovered new exit (range 15) 1273 | -9/Materials | Identified exit to Mines 1688 | -9/Materials | Discovered new exit (range 14) 1714 | -9/Materials | Identified exit to Materials 2116 | -9/Materials | Discovered exit to Materials (range 4) 2216 | -9/Materials | Entered Mines 2292 | -9/Mines | Lost 5 parts (2n1u2w) 2426 | -9/Mines | Learned 2 Materials zone layouts 2447 | -9/Mines | Deemed a non-threat by the Exiles lab entrance 2447 | -9/Mines | Discovered new exit (range 5) 2480 | -9/Mines | Identified exit to Exiles 2506 | -9/Mines | Assembled infested the area 2511 | -9/Mines | Assisted by a Guerilla fighting off Assembled 2533 | -9/Mines | Entered Exiles 2571 | -9/Exiles | Met 8R-AWN 2599 | -9/Exiles | Met EX-HEX 2642 | -9/Exiles | Met EX-BIN 2670 | -9/Exiles | Aligned with FarCom system 2671 | -9/Exiles | Given EX-Vault access code 2740 | -9/Exiles | Opened EX-Vault 2820 | -9/Exiles | Found Cloak of Protection 2854 | -9/Exiles | Warned to stay clear of 0b10 Research branches 2899 | -9/Exiles | Met EX-DEC 2987 | -9/Exiles | Visited The Gauntlet 3317 | -9/Exiles | Discovered new exit (range 10) 3328 | -9/Exiles | Identified exit to Mines 3330 | -9/Exiles | Left Exiles lab with Cloak of Protection 3330 | -9/Exiles | Entered Mines 3506 | -8/Mines | Discovered exit to Materials (range 5) 3845 | -8/Mines | Entered Materials 3845 | -8/Materials | Evolved 2 slots: Utility x2 4160 | -8/Materials | Discovered new exit (range 4) 4163 | -8/Materials | Identified exit to Factory 4612 | -8/Materials | Entered Factory 4612 | -7/Factory | Evolved 2 slots: Propulsion x2 5188 | -7/Factory | Discovered new exit (range 8) 5195 | -7/Factory | Identified exit to Lower Caves 5410 | -7/Factory | Lost 3 parts (2u1w) 5566 | -7/Factory | Build established: Scavenger-Skirmisher 6232 | -7/Factory | Lost 3 parts (3n) 6527 | -7/Factory | Entered Lower Caves 6565 | -7/Lower Caves | Lost 3 parts (1p1n1w) 6580 | -7/Lower Caves | Attracted the attention of an 0b10 checkpoint 6766 | -7/Lower Caves | Acquired the password to a Derelict Tinkerer's latest research 6770 | -7/Lower Caves | Found Prototype Special Weapon 6770 | -7/Lower Caves | Identified Molecular Deconstructor 6809 | -7/Lower Caves | Discovered new exit (range 12) 6812 | -7/Lower Caves | Identified exit to Lower Caves 6839 | -7/Lower Caves | Entered another Lower Caves area 6875 | -7/Lower Caves | Self-destructed Last Messages --------------- LOCATION=LOWER CAVES GOAL=ESCAPE 06840_ Dropped Molecular Deconstructor. 06841_ Structural Scanner destroyed. 06841_ Destroyed Structural Scanner. 06844_ Cesium-ion Thruster destroyed. 06845_ Imp. Grenade Launcher destroyed. 06845_ Destroyed Imp. Grenade Launcher. 06847_ Xenon Bombardment Thruster destroyed. 06849_ Destroyed Cesium-ion Thruster. 06850_ Gravmag System destroyed. 06852_ Mace follow-up attack on 8B-OD7(f). 06852_ Destroyed Tearclaws. 06852_ 8B-OD7(f) system corrupted by crushing effect. 06852_ 8B-OD7(f) destroyed. 06858_ Searching scrap... 06858_ Found Hcp. Storage Unit. 06858_ Found Kinecellerator. 06858_ Found 55 Matter. 06872_ Xenon Bombardment Thruster destroyed. Map ----- +----------------------------------------------------+ | | | | | | | | | | | | | | | | | | | | | | | | | | | ????????????????????????????????????????????? | | ????????????????????????????????????????????? | | ????????????????????????????????????????????? | | ????????????????????????????????????????????? | | ????????????????????????####????????????????? | | ???????????????????????? #????????????????? | | ???????????????????????? #????????????????? | | ????????????????????????# #????????????????? | | ????????????????????????# #????????????????? | | ???????????# ???????????# #????????????????? | | ???????????# ??????????# #????????????????? | | ???????????# ??????????# #????????????????? | | ???????????# ??????????#@ #????????????????? | | ??????????## ??????????# #????????????????? | | ??????????## ??????????# #????????????????? | | ??????????## ??????????# ##???????????????? | | ???????##??# #""" "??# #???????????????? | | ???????# #?# #####+#####s #???????????????? | | ??????## ## #???????????????? | | ??????# # s ##???????????????? | | ?????## #### ###????????????????? | | ?????## #?# #??????????????????? | | ?????### | #### #??????????????????? | | ??????## ##?????????????????? | | ??????### ##?????????????????? | | ??????### ## ##?????????????????? | | ???????### # ## ##?????????????????? | | ??????####### ### ### ##?????????????????? | | ?????## #####%### ### ##?????????????????? | | ???### !! ##?????????????????? | | ???# ##?????????????????? | | ??## ####### #?????????????????? | | ??# ######?######## #????????????????? | | # #???????### "" #???????????????? | | ?????????????" " #???????????????? | | # ?????????????" " " #???????????????? | | # ???????????"" #???????????????? | +----------------------------------------------------+ Best States ------------- Heat Dissipation 53 Energy Generation 23 Energy Capacity 480 Matter Stores 300 Matter Capacity 300 Sight Range 16 Terrain Scan Range 14 Terrain Scan Density 10 Cloak Strength 5 Additional Mass Support 9 Corruption Block 8 Armor Coverage 375 Resistance: EM 15 Evasion (%) 71 Launcher Accuracy 20 Offensive Hacking 10 Item Schematics ----------------- Cesium-ion Thruster | -8/Materials | Scanalyzed Imp. Flight Unit | -7/Factory | Scanalyzed Robot Schematics ------------------ None Fabricated ------------ Nothing Repaired ---------- Nothing Studied --------- Particle Cannon | -9/Materials | Hacked Lgt. EM Pulse Cannon | -9/Materials | Hacked Rocket Launcher | -9/Materials | Hacked Alien Tech Used ----------------- None Achievements -------------- Sixth Sense Challenges ------------ None Game ------ Seed StorageEncryptedBox Manual? 0 Play Time 01:39:04 Cumulative 86.5 hours Start 2026.03.19 @ 15:59:53 End 2026.03.19 @ 18:10:38 Sessions 3 Manual Loads 0 Difficulty Rogue Special Mode None Game No. 76 Rogue 31 Adventurer 45 Explorer 0 Win Type - Total 3 Types 2/0/0/1/0/0/0/0/0/0 Lore% 57 Gallery% 48 Achievement% 35 Wizard Run 0 Options --------- Layout 0 ASCII 0 Keyboard 1 Movement Numpad Keybinds 0 Fullscreen 1 Font 24/Smallcaps Map View 76x50 Zoom Use 0% Tactical HUD 1 Map Filters NONE Filters NONE Steam 1 RUN: 4f9063fb-3ce6-4f31-be32-71b5407cfd81